fUSD/lending_fUSD_20250716
["ID","MTS","AMOUNT","RATE_DAILY","PERIOD"]
[372448663,1752647466854,-460.0,0.00022054,2]
[372448664,1752647466863,-1718.98,0.00022054,2]
[372448665,1752647466872,-460.0,0.00022054,2]
[372448666,1752647466881,-460.0,0.00022054,2]
[372448667,1752647466890,-460.0,0.00022054,2]
[372448668,1752647466899,-460.0,0.00022054,2]
[372448669,1752647466908,-839.53,0.00022054,2]
[372448670,1752647466917,-460.0,0.00022054,2]
[372448671,1752647466926,-460.0,0.00022054,2]
[372448672,1752647466935,-460.0,0.00022054,2]
[372448673,1752647466945,-460.0,0.00022054,2]
[372448674,1752647466954,-460.0,0.00022054,2]
[372448675,1752647466963,-460.0,0.00022054,2]
[372448676,1752647466973,-460.0,0.00022054,2]
[372448677,1752647466982,-153.776333,0.00022054,7]
[372448678,1752647466991,-2216.8,0.00022054,2]
[372448679,1752647467000,-460.0,0.00022054,2]
[372448680,1752647467009,-460.0,0.00022054,2]
[372448681,1752647467019,-2760.22,0.00022054,2]
[372448682,1752647467028,-460.0,0.00022054,2]
[372448683,1752647467037,-827.1,0.00022054,2]
[372448684,1752647467047,-614.03,0.00022054,2]
[372448685,1752647467056,-460.76459641,0.00022054,2]
[372448686,1752647467183,-460.0,0.00022054,2]
[372448687,1752647467193,-460.0,0.00022054,2]
[372448688,1752647467203,-651.58,0.00022054,2]
[372448689,1752647467212,-286.624337,0.00022054,7]
[372448690,1752647467221,-460.0,0.00022054,2]
[372448691,1752647467230,-1000.0,0.00022054,2]
[372448692,1752647467240,-460.0,0.00022054,2]
[372448693,1752647467250,-583.72985589,0.00022054,2]
[372448694,1752647467259,-460.0,0.00022054,2]
[372448695,1752647467269,-460.0,0.00022054,2]
[372448696,1752647467278,-460.0,0.00022054,2]
[372448697,1752647467288,-1741.2,0.00022054,2]
[372448698,1752647467298,-767.54,0.00022054,2]
[372448699,1752647467310,-460.0,0.00022054,2]
[372448700,1752647467319,-460.0,0.00022054,2]
[372448701,1752647467328,-1113.93,0.00022054,2]
[372448702,1752647467338,-460.0,0.00022054,2]
[372448703,1752647467347,-1076.05,0.00022054,2]
[372448704,1752647467356,-472.31,0.00022054,2]
[372448705,1752647467365,-460.0,0.00022054,2]
[372448706,1752647467374,-460.0,0.00022054,2]
[372448707,1752647467384,-460.0,0.00022054,2]
[372448708,1752647467393,-464.65607354,0.00022054,2]
[372448709,1752647467402,-460.59,0.00022054,2]
[372448710,1752647467411,-460.0,0.00022054,2]
[372448711,1752647467421,-577.49650401,0.00022054,2]
[372448712,1752647467437,-633.47,0.00022054,2]
[372448713,1752647467456,-583.71,0.00022054,2]
[372448714,1752647467465,-460.0,0.00022054,2]
[372448715,1752647467475,-460.0,0.00022054,2]
[372448716,1752647467484,-610.13,0.00022054,2]
[372448717,1752647467494,-2799.15,0.00022054,2]
[372448718,1752647467504,-1384.67,0.00022054,2]
[372448719,1752647467513,-1453.97,0.00022054,2]
[372448720,1752647467523,-560.88,0.00022054,2]
[372448721,1752647467533,-1014.75,0.00022054,2]
[372448722,1752647467542,-460.0,0.00022054,2]
[372448723,1752647467552,-945.93,0.00022054,2]
[372448724,1752647467561,-3502.81,0.00022054,2]
[372448725,1752647467571,-2382.84,0.00022054,2]
[372448726,1752647467581,-479.56,0.00022054,2]
[372448727,1752647467591,-460.0,0.00022054,2]
[372448728,1752647467600,-955.97,0.00022054,2]
[372448729,1752647467610,-460.0,0.00022054,2]
[372448730,1752647467620,-562.87,0.00022054,2]
[372448731,1752647467629,-654.5,0.00022054,2]
[372448732,1752647467639,-540.73,0.00022054,2]
[372448733,1752647467648,-476.26,0.00022054,2]
[372448734,1752647467659,-470.87956027,0.00022054,2]
[372448735,1752647467668,-2014.48,0.00022054,2]
[372448736,1752647467678,-460.0,0.00022054,2]
[372448737,1752647467691,-460.0,0.00022054,2]
[372448738,1752647467702,-707.35,0.00022054,2]
[372448739,1752647467712,-460.0,0.00022054,2]
[372448740,1752647467723,-811.41,0.00022054,2]
[372448741,1752647467733,-460.0,0.00022054,2]
[372448742,1752647467742,-460.0,0.00022054,2]
[372448743,1752647467752,-669.66,0.00022054,2]
[372448744,1752647467763,-3837.43,0.00022054,2]
[372448745,1752647467773,-460.0,0.00022054,2]
[372448746,1752647467783,-460.0,0.00022054,2]
[372448747,1752647467793,-460.0,0.00022054,2]
[372448748,1752647467802,-1794.55,0.00022054,2]
[372448749,1752647467813,-460.0,0.00022054,2]
[372448750,1752647467823,-460.0,0.00022054,2]
[372448751,1752647467833,-460.0,0.00022054,2]
[372448752,1752647467843,-460.0,0.00022054,2]
[372448753,1752647467853,-2662.58,0.00022054,2]
[372448754,1752647467863,-2813.36,0.00022054,2]
[372448755,1752647467872,-460.0,0.00022054,2]
[372448756,1752647467882,-465.59316935,0.00022054,2]
[372448757,1752647467892,-460.0,0.00022054,2]
[372448758,1752647467903,-460.0,0.00022054,2]
[372448759,1752647467912,-463.50617636,0.00022054,2]
[372448760,1752647467922,-460.0,0.00022054,2]
[372448761,1752647467932,-998.04,0.00022054,2]
[372448762,1752647467942,-460.0,0.00022054,2]
[372448763,1752647467953,-1149.99,0.00022054,2]
[372448764,1752647467963,-274.79685912,0.00022054,2]
[372448765,1752647467973,-460.0,0.00022054,2]
[372448766,1752647467982,-463.01584958,0.00022054,2]
[372448767,1752647467992,-460.0,0.00022054,2]
[372448768,1752647468001,-460.0,0.00022054,2]
[372448769,1752647468011,-460.0,0.00022054,2]
[372448770,1752647468021,-460.0,0.00022054,2]
[372448771,1752647468031,-460.0,0.00022054,2]
[372448772,1752647468040,-460.0,0.00022054,2]
[372448773,1752647468050,-463.88144004,0.00022054,2]
[372448774,1752647468060,-3954.32,0.00022054,2]
[372448775,1752647468069,-460.0,0.00022054,2]
[372448776,1752647468079,-460.0,0.00022054,2]
[372448777,1752647468089,-460.0,0.00022054,2]
[372448778,1752647468098,-778.91,0.00022054,2]
[372448779,1752647468108,-460.0,0.00022054,2]
[372448780,1752647468118,-460.0,0.00022054,2]
[372448781,1752647468127,-460.0,0.00022054,2]
[372448782,1752647468137,-460.0,0.00022054,2]
[372448783,1752647468146,-597.72,0.00022054,2]
[372448784,1752647468156,-460.0,0.00022054,2]
[372448785,1752647468166,-460.0,0.00022054,2]
[372448786,1752647468176,-820.34,0.00022054,2]
[372448787,1752647468185,-460.0,0.00022054,2]
[372448788,1752647468195,-1320.35,0.00022054,2]
[372448789,1752647468205,-1009.96,0.00022054,2]
[372448790,1752647468216,-460.0,0.00022054,2]
[372448791,1752647468225,-793.31,0.00022054,2]
[372448792,1752647468236,-1675.72,0.00022054,2]
[372448793,1752647468245,-460.0,0.00022054,2]
[372448794,1752647468255,-480.67,0.00022054,2]
[372448795,1752647468265,-465.08,0.00022054,2]
[372448796,1752647468274,-460.0,0.00022054,2]
[372448797,1752647468284,-1666.14,0.00022054,2]
[372448798,1752647468294,-460.0,0.00022054,2]
[372448799,1752647468304,-686.66,0.00022054,2]
[372448800,1752647468314,-1288.04,0.00022054,2]
[372448801,1752647468325,-463.88332559,0.00022054,2]
[372448802,1752647468335,-2602.16,0.00022054,2]
[372448803,1752647468344,-460.0,0.00022054,2]
[372448804,1752647468354,-1567.95,0.00022054,2]
[372448805,1752647468364,-1433.66,0.00022054,2]
[372448806,1752647468374,-566.89,0.00022054,2]
[372448807,1752647468384,-460.0,0.00022054,2]
[372448808,1752647468395,-800.66,0.00022054,2]
[372448809,1752647468404,-460.0,0.00022054,2]
[372448810,1752647468414,-460.0,0.00022054,2]
[372448811,1752647468424,-515.14,0.00022054,2]
[372448812,1752647468435,-460.0,0.00022054,2]
[372448813,1752647468445,-460.0,0.00022054,2]
[372448814,1752647468456,-2970.78,0.00022054,2]
[372448815,1752647468467,-460.0,0.00022054,2]
[372448816,1752647468479,-1080.05,0.00022054,2]
[372448817,1752647468489,-539.91,0.00022054,5]
[372448818,1752647468499,-2084.6,0.00022054,2]
[372448819,1752647468508,-460.0,0.00022054,2]
[372448820,1752647468518,-2737.74,0.00022054,2]
[372448821,1752647468528,-735.9,0.00022054,2]
[372448822,1752647468538,-799.97,0.00022054,2]
[372448823,1752647468548,-461.81591101,0.00022054,2]
[372448824,1752647468558,-460.0,0.00022054,2]
[372448825,1752647468568,-460.0,0.00022054,2]
[372448826,1752647468580,-490.37,0.00022054,2]
[372448827,1752647468591,-460.0,0.00022054,2]
[372448828,1752647468600,-1553.97,0.00022054,2]
[372448829,1752647468610,-483.11,0.00022054,2]
[372448830,1752647468620,-460.0,0.00022054,2]
[372448831,1752647468630,-460.0,0.00022054,2]
[372448832,1752647468640,-460.0,0.00022054,2]
[372448833,1752647468649,-978.38,0.00022054,2]
[372448834,1752647468659,-1216.94,0.00022054,2]
[372448835,1752647468669,-1350.44,0.00022054,2]
[372448836,1752647468679,-460.0,0.00022054,2]
[372448837,1752647468691,-460.0,0.00022054,2]
[372448838,1752647468702,-460.0,0.00022054,2]
[372448839,1752647468711,-463.18837409,0.00022054,2]
[372448840,1752647468721,-460.0,0.00022054,2]
[372448841,1752647468731,-460.0,0.00022054,2]
[372448842,1752647468744,-460.0,0.00022054,2]
[372448843,1752647468754,-460.0,0.00022054,2]
[372448844,1752647468763,-1532.57,0.00022054,2]
[372448845,1752647468774,-460.0,0.00022054,2]
[372448846,1752647468784,-800.41,0.00022054,2]
[372448847,1752647468794,-765.9,0.00022054,2]
[372448848,1752647468805,-460.0,0.00022054,2]
[372448849,1752647468814,-1685.99,0.00022054,2]
[372448850,1752647468824,-460.92467101,0.00022054,2]
[372448851,1752647468834,-1007.2,0.00022054,2]
[372448852,1752647468845,-1285.77,0.00022054,2]
[372448853,1752647468854,-2428.45,0.00022054,2]
[372448854,1752647468864,-460.0,0.00022054,2]
[372448855,1752647468874,-460.0,0.00022054,2]
[372448856,1752647468883,-1921.96,0.00022054,2]
[372448857,1752647468893,-535.79,0.00022054,2]
[372448858,1752647468902,-460.0,0.00022054,2]
[372448859,1752647468912,-460.0,0.00022054,2]
[372448860,1752647468922,-460.0,0.00022054,2]
[372448861,1752647468934,-460.0,0.00022054,2]
[372448862,1752647468945,-460.0,0.00022054,2]
[372448863,1752647468955,-1048.82,0.00022054,2]
[372448864,1752647468965,-216.58,0.00022054,2]
[372448865,1752647468976,-3461.78,0.00022054,2]
[372448866,1752647468988,-460.0,0.00022054,2]
[372448867,1752647469000,-460.0,0.00022054,2]
[372448868,1752647469009,-530.0,0.00022054,2]
[372448869,1752647469019,-460.0,0.00022054,2]
[372448870,1752647469028,-634.34,0.00022054,2]
[372448871,1752647469038,-460.0,0.00022054,2]
[372448872,1752647469047,-2786.37,0.00022054,2]
[372448873,1752647469057,-490.0,0.00022054,2]
[372448874,1752647469067,-556.91,0.00022054,2]
[372448875,1752647469076,-3241.98,0.00022054,2]
[372448876,1752647469087,-460.0,0.00022054,2]
[372448877,1752647469096,-1782.29,0.00022054,2]
[372448878,1752647469106,-460.0,0.00022054,2]
[372448879,1752647469115,-486.32,0.00022054,2]
[372448880,1752647469125,-460.0,0.00022054,2]
[372448881,1752647469134,-1427.07,0.00022054,2]
[372448882,1752647469144,-496.66,0.00022054,2]
[372448883,1752647469154,-940.68,0.00022054,2]
[372448884,1752647469163,-497.88679973,0.00022054,2]
[372448885,1752647469172,-460.0,0.00022054,2]
[372448886,1752647469182,-698.08,0.00022054,2]
[372448887,1752647469191,-460.0,0.00022054,2]
[372448888,1752647469201,-3533.09,0.00022054,2]
[372448889,1752647469211,-1620.17,0.00022054,2]
[372448890,1752647469220,-3370.33,0.00022054,2]
[372448891,1752647469230,-521.9,0.00022054,2]
[372448892,1752647469240,-2608.6,0.00022054,2]
[372448893,1752647469250,-151.0,0.00022054,7]
[372448894,1752647469261,-171.029236,0.00022054,7]
[372448895,1752647469271,-460.0,0.00022054,2]
[372448896,1752647469280,-460.0,0.00022054,2]
[372448897,1752647469290,-571.97,0.00022054,2]
[372448898,1752647469299,-3109.2,0.00022054,2]
[372448899,1752647469310,-724.54,0.00022054,2]
[372448900,1752647469320,-534.27,0.00022054,2]
[372448901,1752647469330,-460.0,0.00022054,2]
[372448902,1752647469339,-151.0,0.00022054,7]
[372448903,1752647469349,-286.038888,0.00022054,7]
[372448904,1752647469359,-460.0,0.00022054,2]
[372448905,1752647469679,-664.63,0.00022054,2]
[372448906,1752647469701,-460.0,0.00022054,2]
[372448907,1752647469711,-460.0,0.00022054,2]
[372448908,1752647469722,-507.77,0.00022054,2]
[372448909,1752647469732,-2384.65,0.00022054,2]
[372448910,1752647469742,-1749.0,0.00022054,2]
[372448911,1752647469752,-460.0,0.00022054,2]
[372448912,1752647469763,-460.0,0.00022054,2]
[372448913,1752647469774,-460.0,0.00022054,2]
[372448914,1752647469784,-460.0,0.00022054,2]
[372448915,1752647469794,-460.0,0.00022054,2]
[372448916,1752647469804,-2777.23,0.00022054,2]
[372448917,1752647469814,-726.13,0.00022054,2]
[372448918,1752647469824,-817.18,0.00022054,2]
[372448919,1752647469834,-460.0,0.00022054,2]
[372448920,1752647469844,-461.77696716,0.00022054,2]
[372448921,1752647469854,-463.1495854,0.00022054,2]
[372448922,1752647469864,-151.0,0.00022054,7]
[372448923,1752647469874,-151.0,0.00022054,7]
[372448924,1752647469884,-522.62,0.00022054,2]
[372448925,1752647469894,-463.50336167,0.00022054,2]
[372448926,1752647469904,-151.0,0.00022054,7]
[372448927,1752647469914,-460.0,0.00022054,2]
[372448928,1752647469924,-151.0,0.00022054,7]
[372448929,1752647469934,-1268.93,0.00022054,2]
[372448930,1752647469943,-151.0,0.00022054,7]
[372448931,1752647469954,-460.0,0.00022054,2]
[372448932,1752647469964,-1995.38,0.00022054,2]
[372448933,1752647469973,-960.84,0.00022054,2]
[372448934,1752647469983,-460.0,0.00022054,2]
[372448935,1752647469993,-877.13,0.00022054,2]
[372448936,1752647470003,-460.0,0.00022054,2]
[372448937,1752647470013,-1050.12,0.00022054,2]
[372448938,1752647470023,-460.0,0.00022054,2]
[372448939,1752647470033,-799.76,0.00022054,2]
[372448940,1752647470043,-894.43,0.00022054,2]
[372448941,1752647470053,-3637.64,0.00022054,2]
[372448942,1752647470063,-461.05821104,0.00022054,2]
[372448943,1752647470072,-460.0,0.00022054,2]
[372448944,1752647470082,-460.0,0.00022054,2]
[372448945,1752647470092,-621.26,0.00022054,2]
[372448946,1752647470103,-2758.68,0.00022054,2]
[372448947,1752647470113,-658.88,0.00022054,2]
[372448948,1752647470122,-460.0,0.00022054,2]
[372448949,1752647470132,-1480.43,0.00022054,2]
[372448950,1752647470142,-151.0,0.00022054,7]
[372448951,1752647470153,-151.0,0.00022054,7]
[372448952,1752647470163,-870.67,0.00022054,2]
[372448953,1752647470174,-151.0,0.00022054,7]
[372448954,1752647470187,-151.0,0.00022054,7]
[372448955,1752647470197,-460.0,0.00022054,2]
[372448956,1752647470211,-519.68,0.00022054,2]
[372448957,1752647470220,-524.73,0.00022054,2]
[372448958,1752647470230,-155.253589,0.00022054,7]
[372448959,1752647470240,-483.33847202,0.00022054,2]
[372448960,1752647470250,-2726.06,0.00022054,2]
[372448961,1752647470261,-1173.93,0.00022054,2]
[372448962,1752647470270,-460.0,0.00022054,2]
[372448963,1752647470280,-2816.73,0.00022054,2]
[372448964,1752647470290,-460.0,0.00022054,2]
[372448965,1752647470301,-875.13,0.00022054,2]
[372448966,1752647470311,-550.41,0.00022054,2]
[372448967,1752647470321,-460.0,0.00022054,2]
[372448968,1752647470331,-460.0,0.00022054,2]
[372448969,1752647470341,-1275.35,0.00022054,2]
[372448970,1752647470352,-413.77548305,0.00022054,2]
[372448971,1752647470362,-533.600887,0.00022054,2]
[372448972,1752647470373,-585.99,0.00022054,2]
[372448973,1752647470383,-460.0,0.00022054,2]
[372448974,1752647470393,-1807.59,0.00022054,2]
[372448975,1752647470403,-460.0,0.00022054,2]
[372448976,1752647470413,-576.12,0.00022054,2]
[372448977,1752647470424,-460.0,0.00022054,2]
[372448978,1752647470433,-460.0,0.00022054,2]
[372448979,1752647470443,-460.0,0.00022054,2]
[372448980,1752647470454,-816.39,0.00022054,2]
[372448981,1752647470464,-460.0,0.00022054,2]
[372448982,1752647470474,-1159.58,0.00022054,2]
[372448983,1752647470484,-1191.39,0.00022054,2]
[372448984,1752647470495,-603.92877468,0.00022054,2]
[372448985,1752647470507,-2351.57,0.00022054,2]
[372448986,1752647470517,-1490.82,0.00022054,2]
[372448987,1752647470527,-460.0,0.00022054,2]
[372448988,1752647470538,-460.0,0.00022054,2]
[372448989,1752647470548,-460.0,0.00022054,2]
[372448990,1752647470558,-460.0,0.00022054,2]
[372448991,1752647470569,-3186.39,0.00022054,2]
[372448992,1752647470580,-540.0021535,0.00022054,2]
[372448993,1752647470591,-460.0,0.00022054,2]
[372448994,1752647470602,-952.51,0.00022054,2]
[372448995,1752647470612,-460.0,0.00022054,2]
[372448996,1752647470622,-2723.46,0.00022054,2]
[372448997,1752647470632,-1591.14,0.00022054,2]
[372448998,1752647470641,-1176.71,0.00022054,2]
[372448999,1752647470651,-460.0,0.00022054,2]
[372449000,1752647470661,-2390.77,0.00022054,2]
[372449001,1752647470671,-2232.65,0.00022054,2]
[372449002,1752647470683,-460.0,0.00022054,2]
[372449003,1752647470696,-1102.23,0.00022054,2]
[372449004,1752647470706,-460.0,0.00022054,2]
[372449005,1752647470716,-460.0,0.00022054,2]
[372449006,1752647470726,-573.01,0.00022054,2]
[372449007,1752647470735,-1696.66,0.00022054,2]
[372449008,1752647470745,-460.0,0.00022054,2]
[372449009,1752647470755,-1126.39,0.00022054,2]
[372449010,1752647470765,-460.0,0.00022054,2]
[372449011,1752647470775,-460.0,0.00022054,2]
[372449012,1752647470785,-460.0,0.00022054,2]
[372449013,1752647470795,-460.0,0.00022054,2]
[372449014,1752647470805,-460.0,0.00022054,2]
[372449015,1752647470815,-1065.46,0.00022054,2]
[372449016,1752647470826,-1967.49,0.00022054,2]
[372449017,1752647470836,-2802.34,0.00022054,2]
[372449018,1752647470845,-460.0,0.00022054,2]
[372449019,1752647470855,-725.07,0.00022054,2]
[372449020,1752647470865,-460.0,0.00022054,2]
[372449021,1752647470876,-3681.4,0.00022054,2]
[372449022,1752647470886,-460.0,0.00022054,2]
[372449023,1752647470896,-460.0,0.00022054,2]
[372449024,1752647470913,-515.37488016,0.00022054,2]
[372449025,1752647470924,-460.0,0.00022054,2]
[372449026,1752647470934,-462.03131094,0.00022054,2]
[372449027,1752647470943,-1923.18,0.00022054,2]
[372449028,1752647470954,-460.0,0.00022054,2]
[372449029,1752647470964,-151.0,0.00022054,7]
[372449030,1752647470974,-895.86,0.00022054,2]
[372449031,1752647470983,-151.0,0.00022054,7]
[372449032,1752647470993,-151.0,0.00022054,7]
[372449033,1752647471003,-2980.36,0.00022054,2]
[372449034,1752647471012,-460.0,0.00022054,2]
[372449035,1752647471021,-460.0,0.00022054,2]
[372449036,1752647471031,-151.0,0.00022054,7]
[372449037,1752647471040,-202.294262,0.00022054,7]
[372449038,1752647471050,-558.22,0.00022054,2]
[372449039,1752647471060,-460.0,0.00022054,2]
[372449040,1752647471071,-460.0,0.00022054,2]
[372449041,1752647471081,-1046.65,0.00022054,2]
[372449042,1752647471091,-1166.76,0.00022054,2]
[372449043,1752647471101,-910.05,0.00022054,2]
[372449044,1752647471110,-460.0,0.00022054,2]
[372449045,1752647471120,-1660.61,0.00022054,2]
[372449046,1752647471130,-460.0,0.00022054,2]
[372449047,1752647471139,-441.80905337,0.00022054,2]
[372449048,1752647471148,-460.0,0.00022054,2]
[372449049,1752647471158,-460.0,0.00022054,2]
[372449050,1752647471167,-460.0,0.00022054,2]
[372449051,1752647471177,-686.69,0.00022054,2]
[372449052,1752647471186,-460.0,0.00022054,2]
[372449053,1752647471196,-563.53,0.00022054,2]
[372449054,1752647471207,-7082.91,0.00022054,2]
[372449055,1752647471216,-1116.41,0.00022054,2]
[372449056,1752647471226,-664.83,0.00022054,2]
[372449057,1752647471236,-460.0,0.00022054,2]
[372449058,1752647471247,-729.75,0.00022054,2]
[372449059,1752647471258,-1452.37,0.00022054,2]
[372449060,1752647471268,-562.31,0.00022054,2]
[372449061,1752647471279,-2536.44,0.00022054,2]
[372449062,1752647471289,-460.0,0.00022054,2]
[372449063,1752647471299,-592.13934859,0.00022054,2]
[372449064,1752647471310,-1853.54,0.00022054,2]
[372449065,1752647471319,-618.49,0.00022054,2]
[372449066,1752647471329,-2549.34,0.00022054,2]
[372449067,1752647471339,-460.0,0.00022054,2]
[372449068,1752647471349,-2348.37,0.00022054,2]
[372449069,1752647471359,-823.67,0.00022054,2]
[372449070,1752647471369,-462.26606719,0.00022054,2]
[372449071,1752647471379,-460.0,0.00022054,2]
[372449072,1752647471389,-460.0,0.00022054,2]
[372449073,1752647471399,-3300.49,0.00022054,2]
[372449074,1752647471410,-13177.4,0.00022054,2]
[372449075,1752647471419,-743.57,0.00022054,2]
[372449076,1752647471429,-1395.48,0.00022054,2]
[372449077,1752647471439,-460.0,0.00022054,2]
[372449078,1752647471450,-460.0,0.00022054,2]
[372449079,1752647471459,-503.04338929,0.00022054,2]
[372449080,1752647471469,-3124.14,0.00022054,2]
[372449081,1752647471479,-488.09,0.00022054,2]
[372449082,1752647471489,-460.0,0.00022054,2]
[372449083,1752647471499,-460.41,0.00022054,2]
[372449084,1752647471510,-903.12,0.00022054,2]
[372449085,1752647471520,-497.5,0.00022054,2]
[372449086,1752647471529,-687.38,0.00022054,2]
[372449087,1752647471539,-1378.48,0.00022054,2]
[372449088,1752647471549,-259.000331,0.00022054,7]
[372449089,1752647471558,-3389.02,0.00022054,2]
[372449090,1752647471569,-259.000331,0.00022054,7]
[372449091,1752647471578,-1007.66,0.00022054,2]
[372449092,1752647471589,-259.000331,0.00022054,7]
[372449093,1752647471606,-1552.66,0.00022054,2]
[372449094,1752647471615,-259.000331,0.00022054,7]
[372449095,1752647471625,-821.24,0.00022054,2]
[372449096,1752647471635,-1247.94,0.00022054,2]
[372449097,1752647471644,-1828.64,0.00022054,2]
[372449098,1752647471654,-460.0,0.00022054,2]
[372449099,1752647471663,-525.43,0.00022054,2]
[372449100,1752647471673,-13272.84,0.00022054,2]
[372449101,1752647471685,-259.000331,0.00022054,7]
[372449102,1752647471695,-259.000331,0.00022054,7]
[372449103,1752647471705,-183.29252206,0.00022054,2]
[372449104,1752647471715,-460.0,0.00022054,2]
[372449105,1752647471725,-1062.01,0.00022054,2]
[372449106,1752647471734,-259.000331,0.00022054,7]
[372449107,1752647471743,-476.56,0.00022054,2]
[372449108,1752647471753,-659.63,0.00022054,2]
[372449109,1752647471766,-460.0,0.00022054,2]
[372449110,1752647471776,-259.000331,0.00022054,7]
[372449111,1752647471786,-955.08,0.00022054,2]
[372449112,1752647471796,-1808.06,0.00022054,2]
[372449113,1752647471805,-4130.56,0.00022054,2]
[372449114,1752647471815,-1490.95,0.00022054,2]
[372449115,1752647471824,-536.0,0.00022054,2]
[372449116,1752647471834,-543.88,0.00022054,2]
[372449117,1752647471844,-524.0,0.00022054,2]
[372449118,1752647471854,-594.43,0.00022054,2]
[372449119,1752647471864,-1459.14,0.00022054,2]
[372449120,1752647471874,-460.0,0.00022054,2]
[372449121,1752647471883,-460.0,0.00022054,2]
[372449122,1752647471893,-2023.43,0.00022054,2]
[372449123,1752647471903,-607.86,0.00022054,2]
[372449124,1752647471912,-1415.95,0.00022054,2]
[372449125,1752647471922,-861.77,0.00022054,2]
[372449126,1752647471932,-760.3,0.00022054,2]
[372449127,1752647471941,-151.0,0.00022054,7]
[372449128,1752647471951,-460.0,0.00022054,2]
[372449129,1752647471961,-155.461104,0.00022054,7]
[372449130,1752647471971,-752.69,0.00022054,2]
[372449131,1752647471981,-460.0,0.00022054,2]
[372449132,1752647471991,-985.75,0.00022054,2]
[372449133,1752647472001,-500.0,0.00022054,2]
[372449134,1752647472010,-614.63,0.00022054,2]
[372449135,1752647472020,-460.0,0.00022054,2]
[372449136,1752647472030,-2299.09,0.00022054,2]
[372449137,1752647472039,-621.83,0.00022054,2]
[372449138,1752647472049,-1178.2,0.00022054,2]
[372449139,1752647472058,-1103.09,0.00022054,2]
[372449140,1752647472067,-460.0,0.00022054,2]
[372449141,1752647472077,-1116.91,0.00022054,2]
[372449142,1752647472087,-500.0,0.00022054,2]
[372449143,1752647472096,-151.0,0.00022054,7]
[372449144,1752647472106,-151.0,0.00022054,7]
[372449145,1752647472116,-1691.69,0.00022054,2]
[372449146,1752647472126,-151.0,0.00022054,7]
[372449147,1752647472136,-151.0,0.00022054,7]
[372449148,1752647472149,-630.58,0.00022054,2]
[372449149,1752647472160,-460.0,0.00022054,2]
[372449150,1752647472170,-460.0,0.00022054,2]
[372449151,1752647472187,-479.77,0.00022054,2]
[372449152,1752647472200,-1231.18,0.00022054,2]
[372449153,1752647472211,-460.0,0.00022054,2]
[372449154,1752647472220,-19780.76,0.00022054,2]
[372449155,1752647472230,-150.0,0.00022054,2]
[372449156,1752647472239,-500.0,0.00022054,2]
[372449157,1752647472249,-1380.34,0.00022054,2]
[372449158,1752647472258,-983.2,0.00022054,2]
[372449159,1752647472268,-876.39,0.00022054,2]
[372449160,1752647472277,-2032.87,0.00022054,2]
[372449161,1752647472287,-500.0,0.00022054,2]
[372449162,1752647472296,-460.0,0.00022054,2]